Workbook

Sheet BOM Generator V2
B4: LBM Modular Configurator
B6: Setup Inputs Here | H6: Calculated Dimensions | V6: Critical Lengths
B7: Select # Displays Wide | D7: 2 | H7: Wall Width | I7: =D7*IF(D11="Landscape", DW, DH)+(D7-1)*D13 -> 95.44 | J7: =I7*2.54 -> 242.4176 | L7: Ext Req (ft) | M7: Actual Remainder
B8: Select # Displays Tall | D8: 2 | H8: Top Height (Max) | I8: =CRH+IF(D11="Landscape", DH, DW)/2 -> 113.9 | J8: =I8*2.54 -> 289.306 | L8: =IF(M26=0, M27, ROUNDUP(M22/12,0)) -> 6 | M8: =L8-M12*M9 -> 6 | N8: =M8-N12*N9 -> 6 | O8: 6 | P8: 6 | Q8: 0 | R8: 0 | S8: 0 | T8: 0 | V8: 20
B9: Select Column Extender | D9: 36in Extender | H9: Top Row Center Height (Max) | I9: =64.5+IF(D9="No Extender", 0,IF(D9="18in Extender", 18, 36)) -> 100.5 | J9: 255.27 | L9: Extr L (ft): | M9: 10 | N9: 9 | O9: 8 | P9: 7 | Q9: 6 | R9: 5 | S9: 4 | T9: 3 | V9: 28
B10: Select Single Sided or Double Sided | D10: Single Sided | H10: Bottom Height (Max) | I10: =I8-IF(D11="Landscape", DH, DW)*D8-(D8-1)*D13 -> 60.26 | J10: 153.0604 | L10: Qty needed | M10: =ROUNDDOWN(L8/M9,0) -> 0 | N10: =ROUNDDOWN(M8/N9,0) -> 0 | O10: =ROUNDDOWN(N8/O9,0) -> 0 | P10: =ROUNDDOWN(O8/P9,0) -> 0 | Q10: 1 | R10: 0 | S10: 0 | T10: =ROUNDUP(S8/T9,0) -> 0 | V10: 29
B11: Select Portrait or Landscape Instalation | D11: Landscape | H11: Height of Displays | I11: =IF(D11="Landscape", DH, DW)*D8+(D8-1)*D13 -> 53.64 | J11: 136.2456 | L11: Remainder @ QN (ft) | M11: =L8-M9*M10 -> 6 | N11: =M8-N9*N10 -> 6 | O11: =N8-O9*O10 -> 6 | P11: 6 | Q11: 0 | R11: 0 | S11: 0 | T11: =S8-T9*T10 -> 0 | V11: 35
H12: Rail Length | I12: =L8*12 -> 72 | J12: 182.88 | L12: Qty Used: | M12: =IF(ISNUMBER(MATCH(L8,V8:V13,0)), M10-1, IF(AND(0<M11,M11<M15), IF(M10>1,M10-1, 0), M10)) -> 0 | N12: =IF(AND(L8=37,E27=5),0,IF(AND(0<N11,N11<M15),IF(N10>1,N10-1,0),N10)) -> 0 | O12: =IF(AND(0<O11,O11<M15), IF(O10>1,O10-1, 0), O10) -> 0 | P12: =IF(AND(0<P11,P11<M15), IF(P10>1,P10-1, 0), P10) -> 0 | Q12: =IF(AND(0<Q11,Q11<M15), IF(Q10>1,Q10-1, 0), Q10) -> 1 | R12: =IF(AND(0<R11,R11<4), 0, R10) -> 0 | S12: =IF(AND(0<S11,S11<3), 0, S10) -> 0 | T12: =IF(0<T11, 0, T10) -> 0 | V12: 36
B13: Desired Display Gap | D13: 0.04 | H13: Total Display Weight | I13: =D21*D7*D8*IF(D10="Single Sided", 1, 2) -> 227.6 | J13: =I13*0.453592 -> 103.2375392 | V13: 37
B14: Select Display Model | D14: NEC - UN552VS | H14: *Calculations based off centered Vesa patterns | L14: in Ext Provided: | M14: =(M9*M12+N9*N12+O9*O12+P9*P12+Q9*Q12+R9*R12+S9*S12+T9*T12)*12 -> 72 | N14: in
B15: * If your model is not listed you can enter it on the next tab. | L15: Min Extr length selected | M15: 5 | N15: ft
L16: Column Capacity | M16: 500 | N16: lbs
B17: =IF(D11="Landscape", "Display Width", "Display Height") -> Display Width | D17: =VLOOKUP($D$14,'Video Wall Display Specs'!$D$1:K36,7,FALSE) -> 47.7 | L17: FMSFR Capacity | M17: 175 | N17: lbs
B18: =IF(D11="Landscape", "Display Height", "Display Width") -> Display Height | D18: =VLOOKUP($D$14,'Video Wall Display Specs'!$D$1:K36,8,FALSE) -> 26.8 | L18: Min # Columns Weight | M18: =ROUNDUP(D7*D8*IF(D10="Single Sided", 1, 2)*D21/M16, 0) -> 1
B19: =IF(D11="Landscape", "Vesa Mounting Width", "Vesa Mounting Height") -> Vesa Mounting Width | D19: =VLOOKUP($D$14,'Video Wall Display Specs'!$D$1:K36,3,FALSE) -> 400 | L19: Min # Columns Span | M19: =ROUNDUP(ABS((I12-64))/96,0)+1 -> 2
B20: =IF(D11="Landscape", "Vesa Mounting Height", "Vesa Mounting Width") -> Vesa Mounting Height | D20: =VLOOKUP($D$14,'Video Wall Display Specs'!$D$1:K36,4,FALSE) -> 400 | L20: Min # Columns FR Cap | M20: =ROUNDUP((D21*D7)/M17,0) -> 1
B21: Display Weight | D21: =VLOOKUP($D$14,'Video Wall Display Specs'!$D$1:K36,6,FALSE) -> 56.9
B22: VESA Mounting Screw Size | D22: =VLOOKUP($D$14,'Video Wall Display Specs'!$D$1:K36,5,FALSE) -> 6 | L22: Min Rail Width | M22: =IF(D11="Landscape", DW, DH)*(D7-1)+IF(D11="Landscape", D19, D20)/25.4+2.75+(D7-1)*D13 -> 66.2380315 | N22: in
L23: Screws Included | M23: 6 | N23: 8
L24: Screw is M6 or M8 | M24: =ISNUMBER(MATCH(D22,M23:N23,0)) -> TRUE
B25: Required Components
B26: Component | C26: Description | E26: QTY | L26: Vesa Width | M26: =_xlfn.NUMBERVALUE(IF(D11="Landscape", D19,D20)) -> 400
B27: FMSFC | C27: Bolt-Down Column | E27: =IF(I10<0, 0,MAX(M18:M20)) -> 2 | L27: Width based Rail (ft) | M27: =ROUNDDOWN(I7/12,0) -> 7
B28: FMSFR | C28: Row to Column Connector | E28: =IF(I10<0, 0,IF(D10="Single Sided", E27*D8, 0)) -> 4
B29: FMSFR-B2B | C29: B2B Row to Column Con | E29: =IF(D10="Single Sided", 0, E27*D8) -> 0
B30: FMSIML | C30: MM Video Wall Interface | E30: =IF(I10<0, 0,D7*D8*IF(D10="Single Sided", 1, 2)) -> 4
B31: FMSIML-P | C31: Video Wall Interface Potrait Adapter | E31: =IF(AND(D19>400,D11="Portrait"),E30,0) -> 0
B32: FMSHC1 | C32: Horizontal Row Connector | E32: =IF(I10<0, 0,(SUM(M12:T12)-1)*D8) -> 0
B33: FMSECAP | C33: Horizontal Rail Endcaps | E33: =IF(I10<0, 0,IF(I10<0, "Error",D8)) -> 2
B34: FMSH36 | C34: 36" Horizontal Rail | E34: =IF(I10<0, 0,T12*D8) -> 0
B35: FMSH48 | C35: 48" Horizontal Rail | E35: =IF(I10<0, 0,S12*D8) -> 0
B36: FMSH60 | C36: 60" Horizontal Rail | E36: =IF(I10<0,0,R12*D8) -> 0
B37: FMSH72 | C37: 72" Horizontal Rail | E37: =IF(I10<0, 0,Q12*D8) -> 2
B38: FMSH84 | C38: 84" Horizontal Rail | E38: =IF(I10<0, 0,P12*D8) -> 0
B39: FMSH96 | C39: 96" Horizontal Rail | E39: =IF(I10<0, 0,O12*D8) -> 0
B40: FMSH108 | C40: 108" Horizontal Rail | E40: =IF(I10<0, 0,N12*D8) -> 0
B41: FMSH120 | C41: 120" Horizontal Rail | E41: =IF(I10<0, 0,M12*D8) -> 0
B42: FCABX18 | C42: 18" column Ext | E42: =IF(I10<0, 0,IF(D9="18in Extender", E27, 0)) -> 0
B43: FCABX36 | C43: 36" column Ext | E43: =IF(I10<0, 0,IF(D9="36in Extender", E27, 0)) -> 2
B109: Landscape
B110: Portrait

Sheet Video Wall Display Specs
B1: Manufacturer | C1: Model | D1: Combination | E1: Size | F1: Vesa Mounting Width(mm) | G1: Vesa Mounting Height (mm) | H1: Screw Size (mm) | I1: Weight (lbs.) | J1: Width (in) | K1: Height (in)
B2: NEC | C2: UN552VS | D2: =B2 & " - " &C2 -> NEC - UN552VS | E2: 55 | F2: 400 | G2: 400 | H2: 6 | I2: 56.9 | J2: 47.7 | K2: 26.8
B3: NEC | C3: UN552 | D3: =B3 & " - " &C3 -> NEC - UN552 | E3: 55 | F3: 400 | G3: 400 | H3: 6 | I3: 61.9 | J3: 47.8 | K3: 27
B4: NEC | C4: UN552S | D4: NEC - UN552S | E4: 55 | F4: 400 | G4: 400 | H4: 6 | I4: 56.9 | J4: 47.7 | K4: 26.8
B5: NEC | C5: UN552V | D5: NEC - UN552V | E5: 55 | F5: 400 | G5: 400 | H5: 6 | I5: 61.9 | J5: 47.8 | K5: 27
B6: NEC | C6: X555UNV | D6: NEC - X555UNV | E6: 55 | F6: 400 | G6: 400 | H6: 6 | I6: 65 | J6: 47.8 | K6: 26.9
B7: NEC | C7: UN492VS | D7: NEC - UN492VS | E7: 49 | F7: 300 | G7: 300 | H7: 6 | I7: 53.6 | J7: 42.4 | K7: 23.9
B8: NEC | C8: UN492S | D8: NEC - UN492S | E8: 49 | F8: 300 | G8: 300 | H8: 6 | I8: 53.6 | J8: 42.4 | K8: 23.9
B9: NEC | C9: UN462VA | D9: =B9 & " - " &C9 -> NEC - UN462VA | E9: 46 | F9: 300 | G9: 300 | H9: 6 | I9: 45 | J9: 40.2 | K9: 22.7
B10: NEC | C10: UN462A | D10: NEC - UN462A | E10: 46 | F10: 300 | G10: 300 | H10: 6 | I10: 45 | J10: 40.2 | K10: 22.7
B11: Samsung | C11: UM46N-E | D11: Samsung - UM46N-E | E11: 46 | F11: 600 | G11: 400 | H11: 8 | I11: 34.6 | J11: 40.15 | K11: 22.6
B12: Samsung | C12: UD46E-B | D12: Samsung - UD46E-B | E12: 46 | F12: 600 | G12: 400 | H12: 8 | I12: 39.6 | J12: 40.2 | K12: 22.7
B13: Samsung | C13: UH46F5 | D13: Samsung - UH46F5 | E13: 46 | F13: 400 | G13: 400 | H13: 8 | I13: 29.1 | J13: 40.3 | K13: 22.7
B14: Samsung | C14: UH55F-E | D14: Samsung - UH55F-E | E14: 55 | F14: 600 | G14: 400 | H14: 8 | I14: 46.29 | J14: 47.6 | K14: 26.8
B15: Samsung | C15: UD55E-B | D15: Samsung - UD55E-B | E15: 55 | F15: 600 | G15: 400 | H15: 8 | I15: 51.3 | J15: 47.8 | K15: 26.9
B16: Planar | C16: VM55LX-U | D16: Planar - VM55LX-U | E16: 55 | F16: 400 | G16: 400 | H16: 6 | I16: 64 | J16: 47.8 | K16: 26.9
A17: Enter New Model Info Here | D17: =B17 & " - " &C17 -> -
D18: -
D19: - | M19: Notice!
D20: - | M20: Maximum weight capacity of 125 lbs. (56.6 kg) per interface set. Display interfaces support up to M8 screws and only include M6 and M8 hardware in the kit.
D21: -
D22: -
D23: -
D24: -
D25: -
D26: -
D27: -
D28: -
D29: -
D30: -
D31: -
D32: -
D33: -
D34: -
D35: -
D36: =B36 & " - " &C36 -> -
